bitfinex/quotes_BTCUSD_20250303
["timestamp","ask_amount","ask_price","bid_price","bid_amount"]
[1741023718605,0.0021281,91068.0,91067.0,0.169713]
[1741023719308,0.0021281,91068.0,91067.0,0.174713]
[1741023719793,0.002298,91068.0,91067.0,0.164713]
[1741023720366,0.002298,91068.0,91042.0,0.219676]
[1741023720569,0.10487006,91067.0,91066.0,0.164715]
[1741023720954,0.09898085,91067.0,91057.0,0.219642]
[1741023721291,0.00609627,91066.0,91065.0,0.164717]
[1741023722097,0.00609627,91066.0,91061.0,0.219632]
[1741023722098,0.10165694,91067.0,91061.0,0.219631]
[1741023722253,0.01454085,91066.0,91050.0,0.01121541]
[1741023722460,0.02062889,91066.0,91040.0,0.18589592]
[1741023722662,0.02062889,91066.0,91062.0,0.164722]
[1741023722859,0.164727,91060.0,91050.0,0.164743]
[1741023723063,0.09898085,91059.0,91041.0,0.219681]
[1741023723358,0.01454085,91052.0,91025.0,0.219718]
[1741023723535,0.17928185,91052.0,91043.0,0.164755]
[1741023723709,0.17928185,91052.0,91025.0,0.219718]
[1741023723710,0.164754,91045.0,91035.0,0.16477]
[1741023723909,0.01454085,91050.0,91033.0,0.01122755]
[1741023724121,0.00607225,91044.0,91043.0,0.164757]
[1741023724327,0.00607225,91044.0,91030.0,0.18589592]
[1741023724328,0.01454085,91052.0,91051.0,0.164742]
[1741023724531,0.0789,91053.0,91052.0,0.164741]
[1741023724696,0.0789,91053.0,91030.0,0.18589592]
[1741023724891,0.0789,91053.0,91020.0,0.18589592]
[1741023724892,0.31298156,91052.0,91020.0,0.18589592]
[1741023725119,0.01454085,91051.0,91039.0,0.164764]
[1741023725335,0.01454085,91046.0,91020.0,0.18589592]
[1741023725492,0.01454085,91046.0,91025.0,0.007]
[1741023725707,0.01454085,91051.0,91025.0,0.01119554]
[1741023726044,0.01454085,91051.0,91020.0,0.18589592]
[1741023726045,0.01454085,91051.0,91023.0,0.219724]
[1741023726189,0.03176136,91045.0,91023.0,0.219724]
[1741023726391,0.01454085,91044.0,91022.0,0.0003398]
[1741023726593,0.01722051,91045.0,91044.0,0.164755]
[1741023727743,0.01722051,91045.0,91033.0,0.219698]
[1741023727995,0.01454085,91044.0,91013.0,0.329622]
[1741023728208,0.01722051,91045.0,91013.0,0.329622]
[1741023728209,0.01722051,91045.0,91044.0,0.164755]
[1741023728938,0.01722051,91045.0,91044.0,0.169755]
[1741023730275,0.01722051,91045.0,91044.0,0.005]
[1741023730658,0.02325327,91045.0,91044.0,0.005]
[1741023731015,0.18800627,91045.0,91044.0,0.005]
[1741023731213,0.02325327,91045.0,91044.0,0.005]
[1741023731349,0.18800627,91045.0,91044.0,0.005]
[1741023731552,0.02325327,91045.0,91044.0,0.169755]
[1741023731756,0.49495507,91045.0,91044.0,0.005]
[1741023732092,0.60816732,91045.0,91044.0,0.005]
[1741023732289,0.44341432,91045.0,91044.0,0.005]
[1741023732972,0.42887347,91045.0,91044.0,0.164755]
[1741023733172,0.38027347,91045.0,91044.0,0.164755]
[1741023733958,0.38027347,91045.0,91037.0,0.164767]
[1741023734127,0.219679,91042.0,91016.0,0.00153785]
[1741023734381,0.219678,91043.0,91031.0,0.164777]
[1741023734538,0.38027347,91045.0,91021.0,0.219728]
[1741023734736,0.18589592,91040.0,91011.0,0.23094876]
[1741023734924,0.18589592,91040.0,91018.0,0.219735]
[1741023734925,0.219688,91038.0,91018.0,0.219735]
[1741023735124,0.164776,91033.0,91022.0,0.2200648]
[1741023735366,0.01454085,91035.0,91022.0,0.0013398]
[1741023735540,0.01454085,91033.0,91022.0,0.0013398]
[1741023735746,0.16478,91031.0,91022.0,0.0003398]
[1741023735942,0.0844,91030.0,91024.0,0.164789]
[1741023736208,0.00588885,91029.0,91022.0,0.0013398]
[1741023736386,0.02311209,91029.0,91022.0,0.0013398]
[1741023736742,0.00588885,91029.0,91028.0,0.164784]
[1741023736966,0.0844,91030.0,91026.0,0.219715]
[1741023737167,0.01104215,91046.0,91044.0,0.164755]
[1741023737340,0.46452956,91045.0,91044.0,0.164755]
[1741023738120,0.38872956,91045.0,91044.0,0.164755]
[1741023738323,0.38872956,91045.0,91024.0,0.21972]
[1741023738324,0.38872956,91045.0,91022.0,0.0003398]
[1741023738879,0.56802341,91045.0,91044.0,0.003]
[1741023739102,0.16478,91031.0,91023.0,0.164793]
[1741023739317,0.29844071,91030.0,91022.0,0.0003398]
[1741023739506,0.30435259,91030.0,91022.0,0.0033398]
[1741023739670,0.164793,91023.0,91022.0,0.0033398]
[1741023739869,0.55467456,91023.0,91022.0,0.0003398]
[1741023740232,0.5605822,91023.0,91022.0,0.0003398]
[1741023740708,0.57780818,91023.0,91022.0,0.0003398]
[1741023740913,0.41301518,91023.0,91022.0,0.0003398]
[1741023741090,0.3957892,91023.0,91022.0,0.0003398]
[1741023741294,0.5605822,91023.0,91022.0,0.0003398]
[1741023741687,0.3957892,91023.0,91022.0,0.0003398]
[1741023742316,0.5605822,91023.0,91022.0,0.0023398]
[1741023743737,0.57780797,91023.0,91022.0,0.0023398]
[1741023744164,0.39847412,91023.0,91022.0,0.1671348]
[1741023744478,0.40597412,91023.0,91022.0,0.1671348]
[1741023744709,0.40597412,91023.0,91022.0,0.1651348]
[1741023745088,0.40597412,91023.0,91022.0,0.1661348]
[1741023745508,0.40597412,91023.0,91022.0,0.1651348]
[1741023745648,0.40597412,91023.0,91022.0,0.1691348]
[1741023747750,0.40597412,91023.0,91022.0,0.1651348]
[1741023747950,0.32157412,91023.0,91022.0,0.1651348]
[1741023748154,0.32157412,91023.0,91022.0,0.1691348]
[1741023748830,0.32157412,91023.0,91022.0,0.1651348]
[1741023749177,0.32157412,91023.0,91022.0,0.1691348]
[1741023750091,0.02313341,91023.0,91022.0,0.1691348]
[1741023750338,0.29844071,91051.0,91050.0,0.164744]
[1741023750511,0.0844,91058.0,91057.0,0.164731]
[1741023750667,0.08451808,91058.0,91057.0,0.164731]
[1741023751067,0.38279263,91062.0,91061.0,0.164724]
[1741023751275,0.29839263,91062.0,91061.0,0.164724]
[1741023751501,0.38279263,91062.0,91061.0,0.164724]
[1741023751704,0.09866188,91080.0,91059.0,0.219635]
[1741023751705,0.38279263,91078.0,91059.0,0.219635]
[1741023751910,0.38279263,91078.0,91062.0,0.164722]
[1741023753673,0.29839263,91078.0,91062.0,0.164722]
[1741023753874,0.08436,91075.0,91062.0,0.164722]
[1741023754282,0.08436,91074.0,91062.0,0.171722]
[1741023754848,0.29839263,91078.0,91062.0,0.171722]
[1741023754849,0.0485,91070.0,91062.0,0.171722]
[1741023755049,0.08436,91064.0,91032.0,0.00825063]
[1741023755252,0.08436,91064.0,91062.0,0.007]
[1741023755610,0.08436,91064.0,91045.0,0.219671]
[1741023755920,0.1648912,91063.0,91062.0,0.002]
[1741023756122,0.47782468,91063.0,91062.0,0.002]
[1741023756472,0.49361731,91063.0,91062.0,0.002]
[1741023757323,0.01454085,91062.0,91028.0,0.21971]
[1741023757529,0.01454085,91060.0,91041.0,0.164759]
[1741023757731,0.23417685,91060.0,91040.0,0.164762]
[1741023757929,0.01454085,91050.0,91028.0,0.00011808]
[1741023758132,0.29839263,91061.0,91043.0,0.164756]
[1741023758331,0.01454085,91049.0,91043.0,0.164756]
[1741023758589,0.164749,91048.0,91028.0,0.00011808]
[1741023758792,0.164749,91048.0,91041.0,0.003]
[1741023758919,0.00501486,91047.0,91028.0,0.00011808]
[1741023759121,0.01454085,91052.0,91043.0,0.003]
[1741023759322,0.00501486,91046.0,91043.0,0.222675]
[1741023759544,0.01454085,91060.0,91059.0,0.164728]
[1741023759880,0.31794254,91060.0,91043.0,0.003]
[1741023760284,0.16474,91053.0,91044.0,0.164754]
[1741023760591,0.16474,91053.0,91043.0,0.003]
[1741023760592,0.01454085,91058.0,91026.0,0.01118179]
[1741023760739,0.29839263,91057.0,91028.0,0.006]
[1741023760950,0.30340785,91057.0,91027.0,0.00153778]
[1741023761150,0.30340785,91057.0,91052.0,0.219652]
[1741023761349,0.30340785,91057.0,91049.0,0.219659]
[1741023761549,0.30340785,91057.0,91056.0,0.164733]
[1741023761749,0.38772785,91057.0,91056.0,0.164733]
[1741023761976,0.08933522,91057.0,91056.0,0.164733]
[1741023762503,0.08432,91057.0,91056.0,0.164733]
[1741023762706,0.0001702,91063.0,91062.0,0.164722]
[1741023763324,0.0001702,91063.0,91062.0,0.16625923]
[1741023763522,0.0001702,91063.0,91062.0,0.164722]
[1741023764517,2e-07,91063.0,91062.0,0.164722]
[1741023764760,2e-07,91063.0,91062.0,0.16625914]
[1741023764937,2e-07,91063.0,91062.0,0.21225914]
[1741023765368,2e-07,91063.0,91062.0,0.21925914]
[1741023765538,2e-07,91063.0,91062.0,0.210722]
[1741023765741,0.00587473,91082.0,91062.0,0.04753704]
[1741023766044,0.00587473,91082.0,91081.0,0.164688]
[1741023766866,0.00587473,91082.0,91064.0,0.3]
[1741023767081,0.00587473,91082.0,91081.0,0.164688]
[1741023768279,0.00587473,91082.0,91081.0,0.169688]
[1741023769103,0.00587473,91082.0,91081.0,0.164688]
[1741023769911,0.00587473,91082.0,91081.0,0.005]
[1741023770245,0.00587473,91082.0,91081.0,0.169688]
[1741023770570,0.29839263,91093.0,91087.0,0.164677]
[1741023770763,0.00212803,91088.0,91087.0,0.164677]
[1741023770966,0.00727669,91088.0,91087.0,0.164677]
[1741023771194,0.00203314,91088.0,91087.0,0.164677]
[1741023771397,0.00727669,91088.0,91087.0,0.164677]
[1741023771619,0.00203314,91088.0,91087.0,0.164677]
[1741023771815,0.00728045,91088.0,91087.0,0.164677]
[1741023772053,0.00203314,91088.0,91087.0,0.164677]
[1741023772879,0.00201,91127.0,91118.0,0.164621]
[1741023773249,0.00096325,91119.0,91118.0,0.16615715]
[1741023773475,0.01596325,91121.0,91120.0,0.164618]
[1741023773628,0.01608119,91121.0,91120.0,0.164618]
[1741023775630,0.01608119,91121.0,91120.0,0.171618]
[1741023775968,0.01608119,91121.0,91120.0,0.164618]
[1741023776137,0.01608119,91121.0,91120.0,0.171618]
[1741023776567,0.01608119,91121.0,91078.0,0.09755154]
[1741023776771,0.01608119,91121.0,91120.0,0.007]
[1741023776924,0.18069719,91121.0,91120.0,0.007]
[1741023777124,0.28919994,91121.0,91120.0,0.007]
[1741023777327,0.12458394,91121.0,91120.0,0.007]
[1741023777554,0.12458394,91121.0,91120.0,0.171618]
[1741023777968,0.12458394,91121.0,91120.0,0.164618]
[1741023778268,0.12458394,91121.0,91120.0,0.171618]
[1741023778467,0.12458394,91121.0,91120.0,0.007]
[1741023778699,0.01454085,91120.0,91107.0,0.219521]
[1741023779029,0.01454085,91120.0,91090.0,0.27910619]
[1741023779262,0.29839263,91119.0,91090.0,0.27910619]
[1741023779461,0.29839263,91119.0,91118.0,0.164621]
[1741023779656,0.29839263,91119.0,91090.0,0.27910619]
[1741023779860,0.29839263,91119.0,91090.0,0.28999599]
[1741023780061,0.29839263,91119.0,91115.0,0.164625]
[1741023780268,0.29839263,91119.0,91107.0,0.002]
[1741023780269,0.01454085,91118.0,91107.0,0.002]
[1741023780471,0.219498,91117.0,91107.0,0.002]
[1741023780678,0.31293348,91116.0,91107.0,0.002]
[1741023781021,0.01454085,91108.0,91107.0,0.002]
[1741023781237,0.01454085,91107.0,91103.0,0.219531]
[1741023781424,0.01454085,91115.0,91078.0,0.01091186]
[1741023781634,0.164634,91111.0,91104.0,0.164645]
[1741023781786,0.31293348,91110.0,91080.0,0.00153684]
[1741023781964,0.31293348,91110.0,91081.0,0.219584]
[1741023782169,0.17918185,91107.0,91102.0,0.16465]
[1741023782392,0.219565,91090.0,91057.0,0.0464]
[1741023782571,0.01454085,91088.0,91056.0,0.329466]
[1741023782777,0.01454085,91086.0,91050.0,0.27910619]
[1741023783015,0.01454085,91084.0,91051.0,0.219654]
[1741023783263,0.01454085,91084.0,91050.0,0.27910619]
[1741023783468,0.01454085,91082.0,91062.0,0.2199694]
[1741023783680,0.37669263,91085.0,91064.0,0.219625]
[1741023783877,0.29839263,91085.0,91084.0,0.164683]
[1741023784032,0.08424,91107.0,91075.0,0.00814462]
[1741023784229,0.08124,91107.0,91106.0,0.164643]
[1741023785192,0.08124,91107.0,91099.0,0.219539]
[1741023785193,0.08124,91107.0,91055.0,0.1]
[1741023785409,0.31293348,91106.0,91070.0,0.28753995]
[1741023785610,0.01454085,91105.0,91076.0,0.00039335]
[1741023785727,0.01454085,91105.0,91097.0,0.164658]
[1741023785924,0.01454085,91103.0,91099.0,0.164654]
[1741023786243,0.01454085,91103.0,91093.0,0.219554]
[1741023786449,0.29839263,91104.0,91099.0,0.164655]
[1741023786812,0.29839263,91104.0,91076.0,0.00039335]
[1741023786813,0.01454085,91101.0,91076.0,0.00039335]
[1741023787018,0.01454085,91098.0,91076.0,0.00039335]
[1741023787164,0.29839263,91100.0,91076.0,0.00039335]
[1741023787370,0.01454085,91099.0,91076.0,0.00039335]
[1741023787570,0.01454085,91095.0,91076.0,0.00039335]
[1741023787796,0.01454085,91097.0,91076.0,0.00039335]
[1741023788014,0.164695,91077.0,91076.0,0.00039335]
[1741023788225,0.46308763,91077.0,91076.0,0.00039335]
[1741023788424,0.54018763,91077.0,91076.0,0.00039335]
[1741023789715,0.54018763,91077.0,91076.0,0.00139335]
[1741023790139,0.54018763,91077.0,91076.0,0.00039335]
[1741023790394,0.55118755,91077.0,91076.0,0.00039335]
[1741023790597,0.5657284,91077.0,91076.0,0.00039335]
[1741023792131,0.219608,91072.0,91030.0,0.27910619]
[1741023792316,0.08424,91071.0,91070.0,0.164708]
[1741023792451,0.29839263,91071.0,91070.0,0.164708]
[1741023793310,0.29339263,91071.0,91070.0,0.164708]
[1741023793871,0.29339263,91071.0,91070.0,0.166708]
[1741023794496,0.01148494,91098.0,91097.0,0.164659]
[1741023794763,0.08424,91109.0,91108.0,0.164639]
[1741023795231,0.08424,91109.0,91103.0,0.219529]
[1741023795439,0.08424,91116.0,91090.0,0.27910619]
[1741023795638,0.0766,91134.0,91120.0,0.164618]
[1741023795878,0.00056355,91121.0,91120.0,0.164618]
[1741023796511,0.00056355,91121.0,91116.0,0.164625]
[1741023796664,0.00056355,91121.0,91103.0,0.001]
[1741023797074,0.164628,91115.0,91105.0,0.219524]
[1741023797568,0.00056355,91121.0,91103.0,0.001]
[1741023797898,0.00056355,91121.0,91120.0,0.164618]
[1741023799104,0.00056355,91121.0,91085.0,0.329362]
[1741023799280,0.08424,91120.0,91119.0,0.164619]
[1741023799839,0.00056355,91121.0,91120.0,0.005]
[1741023800243,0.00056355,91121.0,91120.0,0.169618]
[1741023802459,0.00056355,91121.0,91120.0,0.129522]
[1741023802731,0.00056355,91121.0,91120.0,0.134522]
[1741023803099,0.00056355,91121.0,91120.0,0.129522]
[1741023803328,0.00056355,91121.0,91120.0,0.135522]
[1741023804404,0.00056355,91121.0,91120.0,0.15390747]
[1741023804601,0.00056355,91121.0,91120.0,0.15544358]
[1741023804780,0.00056355,91121.0,91120.0,0.15390747]
[1741023805468,0.00056355,91121.0,91120.0,0.15544368]
[1741023805843,5.5e-07,91121.0,91120.0,0.45544368]
[1741023806050,5.5e-07,91121.0,91120.0,0.45390747]
[1741023807523,5.5e-07,91121.0,91120.0,0.46090747]
[1741023808783,5.5e-07,91121.0,91120.0,0.45390747]
[1741023809139,0.00100055,91121.0,91120.0,0.45990747]
[1741023809479,5.5e-07,91121.0,91120.0,0.45390747]
[1741023809794,0.00100055,91121.0,91120.0,0.45990747]
[1741023809952,0.00100055,91121.0,91120.0,0.45390747]
[1741023810384,0.00100055,91121.0,91120.0,0.45990747]
[1741023810605,5.5e-07,91121.0,91120.0,0.45990747]
[1741023811958,0.00201,91147.0,91126.0,0.464607]
[1741023812091,0.00201,91147.0,91146.0,0.164571]
[1741023812293,0.002128,91147.0,91146.0,0.16510677]
[1741023812737,0.002128,91147.0,91146.0,0.46510677]
[1741023812941,0.002128,91147.0,91146.0,0.462571]
[1741023813095,8e-07,91154.0,91151.0,0.3]
[1741023813299,8e-07,91154.0,91153.0,0.464558]
[1741023813495,8e-07,91154.0,91153.0,0.47466567]
[1741023813815,7e-07,91166.0,91159.0,0.219396]
[1741023814024,7e-07,91166.0,91165.0,0.57907685]
[1741023814228,6e-07,91186.0,91174.0,0.3]
[1741023814460,6e-07,91186.0,91185.0,0.4645]
[1741023814662,6e-07,91186.0,91185.0,0.1645]
[1741023814663,0.00011854,91186.0,91185.0,0.1645]
[1741023815439,0.29341633,91186.0,91160.0,0.27910619]
[1741023815643,0.29341633,91186.0,91185.0,0.1645]
[1741023815850,0.29341633,91186.0,91185.0,0.1675]
[1741023816309,0.29341633,91186.0,91185.0,0.4645]
[1741023817799,0.29341633,91186.0,91185.0,0.1645]
[1741023818207,0.29831458,91186.0,91185.0,0.1695]
[1741023818402,0.29831458,91186.0,91185.0,0.1645]
[1741023818829,0.29831458,91186.0,91185.0,0.1685]
[1741023819031,0.29831458,91186.0,91185.0,0.1645]
[1741023819415,0.29831458,91186.0,91185.0,0.1695]
[1741023819611,0.29831458,91186.0,91185.0,0.1645]
[1741023820216,0.29339263,91217.0,91185.0,1.22933619]
[1741023820415,0.02056317,91213.0,91212.0,0.510152]
[1741023821075,0.02056317,91213.0,91212.0,0.464452]
[1741023822594,0.02056317,91213.0,91212.0,0.471452]
[1741023826679,0.02056317,91213.0,91212.0,0.007]
[1741023826878,0.02056317,91213.0,91212.0,0.171452]
[1741023827102,0.02056317,91213.0,91212.0,0.007]
[1741023827310,0.02056317,91213.0,91212.0,0.171452]
[1741023828942,0.18501317,91213.0,91212.0,0.007]
[1741023829163,0.18657132,91213.0,91212.0,0.007]
[1741023829360,0.4784058,91213.0,91212.0,0.007]
[1741023829518,0.3139558,91213.0,91212.0,0.007]
[1741023829720,0.4784058,91213.0,91212.0,0.007]
[1741023831612,0.3139558,91213.0,91199.0,0.219299]
[1741023831930,0.0786,91208.0,91173.0,0.21936]
[1741023832121,0.0786,91208.0,91167.0,0.09545303]
[1741023832122,0.29495078,91207.0,91167.0,0.09545303]
[1741023832419,0.29339263,91207.0,91168.0,0.0015354]
[1741023832597,0.00155815,91206.0,91168.0,0.0015354]
[1741023832857,0.06424085,91205.0,91167.0,0.09545303]
[1741023833050,0.08567815,91204.0,91184.0,0.004]
[1741023833210,0.1645,91185.0,91184.0,0.004]
[1741023833413,0.29339263,91185.0,91184.0,0.004]
[1741023833612,0.45789263,91185.0,91184.0,0.004]
[1741023834447,0.164502,91184.0,91166.0,0.3]
[1741023834790,0.29339263,91185.0,91179.0,0.164511]
[1741023835104,0.29339263,91185.0,91168.0,0.001]
[1741023835225,0.164481,91196.0,91184.0,0.005]
[1741023835428,0.164495,91188.0,91182.0,0.164506]
[1741023835829,0.29339263,91203.0,91167.0,0.00011794]
[1741023835830,0.00155815,91202.0,91167.0,0.00011794]
[1741023836035,0.164501,91185.0,91178.0,0.164513]
[1741023836230,0.29495078,91202.0,91167.0,0.00165333]
[1741023836453,0.27910619,91200.0,91167.0,0.00011794]
[1741023836625,0.29495078,91199.0,91167.0,0.00011794]
[1741023836825,0.164488,91192.0,91186.0,0.164498]
[1741023837038,0.0114903,91201.0,91200.0,0.164473]
[1741023837246,0.08412,91209.0,91208.0,0.164459]
[1741023837419,0.08412,91209.0,91191.0,0.00153496]
[1741023837619,0.08412,91209.0,91205.0,0.164464]
[1741023837822,0.248579,91209.0,91198.0,0.219301]
[1741023838024,0.248579,91209.0,91203.0,0.164467]
[1741023838227,0.08412,91209.0,91190.0,0.27910619]
[1741023838426,0.164464,91205.0,91199.0,0.164474]
[1741023838595,0.164464,91205.0,91199.0,0.164475]
[1741023838990,0.219281,91207.0,91182.0,0.01099178]
[1741023839155,0.219281,91207.0,91169.0,0.0478]
[1741023839156,0.00155815,91206.0,91170.0,0.27910619]
[1741023839362,0.29339263,91205.0,91203.0,0.003]
[1741023839563,0.08035815,91204.0,91203.0,0.003]
[1741023839947,0.37375078,91204.0,91203.0,0.003]
[1741023840165,0.37219263,91204.0,91203.0,0.003]
[1741023840462,0.37219263,91204.0,91177.0,0.164513]
[1741023840463,0.59148063,91204.0,91177.0,0.164513]
[1741023840687,0.00155815,91203.0,91167.0,0.00153544]
[1741023840875,0.27910619,91190.0,91166.0,0.09557097]
[1741023841096,0.15219102,91167.0,91166.0,0.09557097]
[1741023841280,0.52970365,91167.0,91166.0,0.00011794]
[1741023841488,0.29339263,91167.0,91166.0,0.00011794]
[1741023841703,0.37751263,91167.0,91166.0,0.16465294]
[1741023842035,0.54204563,91167.0,91166.0,0.00011794]
[1741023842943,0.59084563,91167.0,91166.0,0.00011794]
[1741023843151,0.68398648,91167.0,91166.0,0.00011794]
[1741023843689,0.66944563,91167.0,91166.0,0.00011794]
[1741023843886,0.66944563,91167.0,91166.0,0.00311794]
[1741023844104,0.62064563,91167.0,91166.0,0.00011794]
[1741023845559,0.62064563,91167.0,91166.0,0.00111794]
[1741023848778,0.62064563,91167.0,91166.0,0.00011794]
[1741023849051,0.63518648,91167.0,91166.0,0.00011794]
[1741023849282,0.72880365,91167.0,91166.0,0.00011794]
[1741023849463,0.63518648,91167.0,91166.0,0.00011794]
[1741023852795,0.6466707,91167.0,91166.0,0.00011794]
[1741023853141,0.7466707,91167.0,91166.0,0.00045794]
[1741023854357,0.7466707,91167.0,91120.0,0.00034]
[1741023854358,0.239774,91144.0,91120.0,0.00034]
[1741023854561,0.61732663,91144.0,91120.0,0.00034]
[1741023854947,0.61732663,91144.0,91125.0,0.164607]
[1741023855195,0.61732663,91144.0,91127.0,0.164605]
[1741023855454,0.61732663,91144.0,91120.0,0.00034]
[1741023855954,0.61732663,91144.0,91131.0,0.164596]
[1741023856171,0.61732663,91144.0,91122.0,0.219484]
[1741023856362,0.54212663,91144.0,91130.0,0.219465]
[1741023856567,0.54212663,91144.0,91126.0,0.219475]
[1741023856810,0.54212663,91144.0,91135.0,0.16459]
[1741023857019,0.54212663,91144.0,91133.0,0.219457]
[1741023857174,0.54212663,91144.0,91130.0,0.164598]
[1741023857369,0.29339263,91144.0,91143.0,0.16465332]
[1741023857575,0.29339263,91152.0,91151.0,0.164562]
[1741023858568,0.29339263,91152.0,91143.0,7.732e-05]
[1741023858791,0.45895263,91152.0,91151.0,0.006]
[1741023859856,0.47002919,91152.0,91151.0,0.006]
[1741023860171,0.29439263,91152.0,91151.0,0.170562]
[1741023861497,0.29339263,91152.0,91151.0,0.164562]
[1741023862361,0.29339263,91152.0,91151.0,0.170562]
[1741023862827,0.29339263,91152.0,91151.0,0.006]
[1741023863083,0.45795263,91152.0,91151.0,0.006]
[1741023863261,0.29339263,91152.0,91151.0,0.170562]
[1741023864591,0.29339263,91152.0,91151.0,0.006]
[1741023864746,0.29339263,91152.0,91151.0,0.170562]
[1741023866072,0.29339263,91152.0,91151.0,0.006]
[1741023866625,0.45795263,91152.0,91151.0,0.006]
[1741023867598,0.46886249,91152.0,91151.0,0.006]
[1741023867952,0.54786249,91152.0,91151.0,0.006]
[1741023868718,0.54786249,91152.0,91143.0,0.00041732]
[1741023868719,0.164574,91144.0,91143.0,0.00041732]
[1741023868930,0.16613215,91144.0,91143.0,0.00041732]
[1741023869325,0.164574,91144.0,91143.0,0.00041732]
[1741023870599,0.45796663,91144.0,91143.0,0.00341732]
[1741023872965,0.29339263,91144.0,91143.0,0.00341732]
[1741023873320,0.29339263,91144.0,91143.0,0.16799332]
[1741023874342,0.29339263,91144.0,91143.0,0.00341732]
[1741023874762,0.29339263,91144.0,91143.0,0.16799332]
[1741023874926,0.45796663,91144.0,91143.0,0.00041732]
[1741023875130,0.29339263,91144.0,91143.0,0.16799332]
[1741023875331,0.29339263,91163.0,91162.0,0.164542]
[1741023876614,0.29339263,91163.0,91145.0,0.3]
[1741023876815,0.29339263,91163.0,91162.0,0.168542]
[1741023877014,0.45793263,91163.0,91162.0,0.004]
[1741023877424,0.29339263,91163.0,91162.0,0.004]
[1741023877620,0.45793263,91163.0,91162.0,0.004]
[1741023878299,0.29339263,91163.0,91152.0,0.219412]
[1741023878480,0.29339263,91163.0,91158.0,0.164548]
[1741023878719,0.45793263,91163.0,91158.0,0.164548]
[1741023878899,0.164545,91161.0,91146.0,0.219427]
[1741023879044,0.29339263,91163.0,91156.0,0.164551]
[1741023879241,0.29339263,91163.0,91144.0,0.219432]
[1741023879545,0.00155815,91162.0,91152.0,0.004]
[1741023879745,0.29339263,91161.0,91147.0,0.164568]
[1741023879995,0.29339263,91161.0,91147.0,0.164567]
[1741023880189,0.16455,91158.0,91152.0,0.164558]
[1741023880389,0.29339263,91161.0,91146.0,0.004]
[1741023880565,0.29339263,91161.0,91152.0,0.219413]
[1741023880766,0.29339263,91161.0,91146.0,0.004]
[1741023880972,0.16455,91158.0,91152.0,0.164558]
[1741023881164,0.29339263,91161.0,91150.0,0.219417]
[1741023881402,0.29339263,91161.0,91157.0,0.16455]
[1741023881623,0.29339263,91161.0,91143.0,0.00041732]
[1741023881814,0.25339263,91161.0,91160.0,0.164545]
[1741023882179,0.25339263,91161.0,91158.0,0.164548]
[1741023882494,0.25339263,91161.0,91157.0,0.16455]
[1741023882679,0.25339263,91161.0,91133.0,0.3]
[1741023882882,0.219394,91160.0,91134.0,0.00153599]
[1741023883077,0.41793663,91161.0,91160.0,0.003]
[1741023883288,0.41793663,91161.0,91133.0,0.3]
[1741023883289,0.164565,91150.0,91133.0,0.3]
[1741023883465,0.219432,91144.0,91120.0,0.00034]
[1741023883671,0.49282463,91144.0,91120.0,0.00034]
[1741023883927,0.49282463,91144.0,91136.0,0.219451]
[1741023884068,0.49282463,91144.0,91137.0,0.219449]
[1741023884267,0.27339263,91144.0,91138.0,0.219446]
[1741023884468,0.49282463,91144.0,91136.0,0.21945]
[1741023884709,0.27339263,91144.0,91130.0,0.219466]
[1741023885029,0.49282463,91144.0,91121.0,0.3]
[1741023885191,0.49282463,91144.0,91143.0,0.00341732]
[1741023885379,0.35751263,91144.0,91143.0,0.22285232]
[1741023885592,0.35751263,91144.0,91143.0,0.00341732]
[1741023886059,0.57694463,91144.0,91143.0,0.00341732]
[1741023886772,0.57252963,91144.0,91143.0,0.00341732]
[1741023887434,0.56812963,91144.0,91143.0,0.00341732]
[1741023890699,0.56829983,91144.0,91143.0,0.00341732]
[1741023892628,0.56829983,91144.0,91143.0,0.00041732]
[1741023892788,0.56829983,91144.0,91143.0,0.00341732]
[1741023893803,0.34886783,91144.0,91143.0,0.00341732]
[1741023894004,0.56829983,91144.0,91143.0,0.00041732]
[1741023894229,0.34886783,91144.0,91143.0,0.21985232]
[1741023894427,0.56829983,91144.0,91143.0,0.00341732]
[1741023894603,0.34886783,91144.0,91143.0,0.22285232]
[1741023895250,0.34886783,91144.0,91143.0,0.00041732]
[1741023895509,0.56829983,91144.0,91143.0,0.00041732]
[1741023895736,0.34886783,91144.0,91143.0,0.00341732]
[1741023896270,0.56829983,91144.0,91143.0,0.00341732]
[1741023896877,0.34886783,91144.0,91143.0,0.00341732]
[1741023897097,0.0001702,91144.0,91143.0,0.22285232]
[1741023897305,2e-07,91144.0,91143.0,0.26855232]
[1741023897734,2e-07,91144.0,91143.0,0.27255232]
[1741023897927,2e-07,91144.0,91143.0,0.26555232]
[1741023898332,2e-07,91144.0,91143.0,0.27255232]
[1741023898606,2e-07,91144.0,91143.0,0.26555232]
[1741023899060,2e-07,91144.0,91143.0,0.27255232]
[1741023899289,2e-07,91144.0,91143.0,0.26555232]
[1741023899506,2e-07,91144.0,91143.0,0.27255232]
[1741023900374,2e-07,91144.0,91143.0,0.22685232]
[1741023900887,2e-07,91144.0,91143.0,0.21985232]
[1741023901097,2e-07,91144.0,91143.0,0.22685232]
[1741023901476,2e-07,91144.0,91143.0,0.21985232]
[1741023901693,2e-07,91144.0,91143.0,0.22685232]
[1741023902231,2e-07,91144.0,91143.0,0.00741732]
[1741023902437,0.26897783,91144.0,91143.0,0.00741732]
[1741023902641,0.26897783,91144.0,91143.0,0.22685232]
[1741023903173,0.26897783,91144.0,91143.0,0.00741732]
[1741023903957,0.48840983,91144.0,91143.0,0.00741732]
[1741023904269,0.99258268,91140.0,91120.0,0.04834]
[1741023904479,0.26897763,91139.0,91137.0,0.219449]
[1741023904689,0.26897763,91139.0,91135.0,0.219452]
[1741023904900,0.219454,91135.0,91134.0,0.000118]
[1741023905100,0.48842463,91138.0,91134.0,0.000118]
[1741023905345,0.26897763,91138.0,91134.0,2.286e-05]
[1741023905545,0.26897763,91138.0,91120.0,0.00034]
[1741023905754,0.00155815,91137.0,91120.0,0.00034]
[1741023905960,0.219461,91132.0,91121.0,0.219488]
[1741023906154,0.219454,91136.0,91120.0,0.00034]
[1741023906379,0.219462,91132.0,91125.0,0.219476]
[1741023906575,0.219449,91137.0,91120.0,0.00034]
[1741023906719,0.00155815,91136.0,91120.0,0.00034]
[1741023906922,0.219475,91127.0,91121.0,0.219488]